bitfinex/quotes_ETHUSD_20250107
["timestamp","ask_amount","ask_price","bid_price","bid_amount"]
[1736260816707,1.04674151,3620.6,3619.6,0.353]
[1736260816909,0.55,3620.6,3619.8,2.76257]
[1736260817052,0.55,3620.6,3619.7,0.02762252]
[1736260817053,0.02762592,3620.5,3619.7,0.02762252]
[1736260817371,0.02762592,3620.5,3619.7,2.79025252]
[1736260817775,0.02762592,3620.5,3619.7,0.02762252]
[1736260818088,5.235783,3622.2,3620.5,2.76204]
[1736260818089,0.9517,3621.2,3620.5,2.76204]
[1736260818269,0.9517,3621.2,3620.6,2.78950549]
[1736260818606,2.76105,3621.9,3621.2,2.76151]
[1736260818607,0.9517,3621.7,3621.2,2.76151]
[1736260818750,0.9517,3621.7,3621.3,0.02761152]
[1736260818949,0.4,3621.9,3621.3,0.02761152]
[1736260819155,0.4,3621.9,3621.0,0.353]
[1736260819403,0.65211979,3621.9,3621.0,0.353]
[1736260819613,0.02762592,3621.8,3621.0,0.353]
[1736260819910,0.4,3621.9,3621.1,2.78919167]
[1736260820116,0.4,3621.9,3621.3,2.76142]
[1736260820249,0.4,3621.9,3621.4,0.02760961]
[1736260820604,0.4,3621.9,3621.2,2.76149]
[1736260821112,0.4,3621.9,3621.3,0.02760974]
[1736260821305,0.55,3621.8,3621.1,2.76158]
[1736260821855,0.02762592,3621.7,3621.0,0.353]
[1736260822309,0.55,3621.5,3621.0,0.353]
[1736260822512,0.02762592,3621.4,3621.0,0.353]
[1736260822716,0.55,3621.2,3621.0,0.353]
[1736260822921,0.9517,3621.3,3621.0,0.353]
[1736260823076,0.9517,3621.3,3620.2,0.353]
[1736260823077,0.42762592,3621.2,3620.2,0.353]
[1736260823278,0.55,3621.1,3620.2,0.353]
[1736260823599,0.55,3620.7,3620.2,0.353]
[1736260823771,0.95,3620.4,3619.7,0.353]
[1736260823973,0.02762592,3620.3,3619.7,0.353]
[1736260824171,0.95,3620.4,3619.7,0.38062338]
[1736260824411,0.95,3620.4,3619.9,2.7625]
[1736260824707,0.95,3620.4,3619.7,0.353]
[1736260825275,0.95,3620.4,3619.8,2.76256]
[1736260825452,0.95,3620.4,3619.9,0.02762112]
[1736260825656,0.95,3620.4,3619.7,3.11558]
[1736260825925,0.95,3620.4,3620.0,2.76242]
[1736260826130,0.9545,3621.0,3620.1,0.02762108]
[1736260826309,0.9545,3621.0,3619.9,2.76243]
[1736260826310,0.02762592,3620.9,3619.9,2.76243]
[1736260826509,0.02762592,3620.9,3619.7,0.353]
[1736260826510,0.55,3620.4,3619.7,0.353]
[1736260826813,0.02762592,3620.8,3619.8,2.76258]
[1736260827017,0.55,3620.8,3619.9,0.0276211]
[1736260827311,0.9545,3621.0,3619.9,0.02761965]
[1736260827474,0.02762592,3620.9,3620.0,2.76242]
[1736260827973,0.02762592,3620.9,3620.0,2.76237]
[1736260827974,0.57762592,3620.9,3620.0,2.76237]
[1736260828174,0.55,3620.7,3619.7,2.76262]
[1736260828429,3.31215,3620.4,3619.7,0.336]
[1736260828639,0.55,3620.2,3619.7,0.336]
[1736260828921,0.4,3620.4,3619.7,0.336]
[1736260829215,0.4,3620.4,3619.7,0.02762339]
[1736260829507,3.162,3620.6,3619.7,0.02762339]
[1736260829722,3.162,3620.6,3619.4,0.336]
[1736260829723,0.89658851,3620.5,3619.4,0.336]
[1736260830428,0.89658851,3620.5,3619.6,2.76273]
[1736260830429,0.55,3620.5,3619.6,2.76273]
[1736260830611,0.55,3620.5,3619.7,0.02762323]
[1736260830835,0.02762592,3620.4,3619.4,0.336]
[1736260831326,0.02762592,3620.4,3619.5,0.02762308]
[1736260831487,0.02762592,3620.4,3619.5,2.76278]
[1736260831691,0.02762592,3620.4,3619.6,2.76273]
[1736260831887,0.02762592,3620.4,3619.4,0.336]
[1736260832095,0.4,3620.0,3619.2,0.336]
[1736260832296,0.57762592,3619.9,3619.2,0.336]
[1736260832831,0.97762592,3619.9,3618.5,1.0711]
[1736260833014,0.42762592,3619.9,3619.0,0.336]
[1736260833361,0.4,3619.9,3619.1,0.336]
[1736260833710,0.57762592,3619.8,3619.1,0.336]
[1736260834029,0.55,3619.8,3619.1,3.09911]
[1736260834213,0.4,3619.9,3619.2,0.02762698]
[1736260834415,0.4,3619.9,3619.1,0.336]
[1736260834617,0.55,3619.8,3619.1,0.336]
[1736260834819,0.95,3619.8,3619.1,0.336]
[1736260836034,0.95,3619.8,3619.2,2.76303]
[1736260836233,0.4,3619.8,3619.2,0.33752866]
[1736260836422,0.4,3619.8,3619.6,2.76267]
[1736260836932,0.9545,3620.3,3619.8,2.76256]
[1736260837174,0.55,3620.2,3619.7,0.02762461]
[1736260837463,0.55,3620.2,3619.3,2.76288]
[1736260837665,0.02762592,3620.1,3619.1,3.09909]
[1736260837979,0.02762592,3620.1,3618.1,2.77524307]
[1736260837980,1.3545,3619.7,3618.1,1.10131307]
[1736260838141,0.9545,3618.8,3618.1,0.01141307]
[1736260838466,3.3138,3618.2,3618.1,0.01141307]
[1736260838622,0.55,3618.2,3618.1,0.01141307]
[1736260838961,4.2683,3618.2,3618.1,0.01141307]
[1736260839262,5.00188051,3618.2,3618.1,0.01141307]
[1736260839489,8.40188051,3618.2,3618.1,0.01141307]
[1736260839626,11.54083043,3618.2,3618.1,0.01141307]
[1736260840763,5.37425459,3618.2,3618.1,0.01141307]
[1736260840942,1.9045,3618.2,3618.1,0.01141307]
[1736260841330,1.3545,3618.2,3618.1,0.01141307]
[1736260841532,0.9545,3618.2,3618.1,0.01141307]
[1736260841964,1.5045,3618.2,3618.1,0.01141307]
[1736260842472,0.4,3618.3,3618.1,0.01141307]
[1736260843671,0.55,3618.2,3618.1,0.01141307]
[1736260844862,2.76488,3616.8,3616.0,1.70900384]
[1736260845136,0.42762592,3616.7,3615.8,1.13933589]
[1736260845330,3.71985,3616.2,3615.8,1.13933589]
[1736260845540,0.02762592,3616.1,3615.8,1.13933589]
[1736260846055,0.02762592,3616.1,3615.1,3.0]
[1736260846056,0.42762592,3616.1,3615.1,3.0]
[1736260846228,0.55,3616.0,3615.0,1.0278]
[1736260847081,0.4,3616.1,3615.5,2.76586]
[1736260847587,0.4,3616.1,3615.1,0.0225]
[1736260847798,0.4,3616.1,3615.4,0.342]
[1736260848105,0.9545,3616.8,3615.6,0.0075]
[1736260848433,3.9112582,3618.2,3615.5,0.015]
[1736260848434,0.4,3617.6,3616.7,2.7649]
[1736260848564,0.42762592,3617.5,3616.8,0.02764504]
[1736260848736,1.13901146,3617.7,3616.8,1.06784504]
[1736260848939,1.13901146,3617.7,3616.9,0.015]
[1736260849140,1.13901146,3617.7,3617.1,3.0075]
[1736260849394,1.13901146,3617.7,3617.6,2.76426]
[1736260849693,1.3545,3618.8,3618.0,2.76395]
[1736260849841,0.9545,3618.8,3618.1,0.36963472]
[1736260850043,0.4,3619.0,3618.2,2.76377]
[1736260850242,1.13901146,3619.1,3618.4,0.015]
[1736260850443,1.13901146,3619.1,3618.5,2.76356]
[1736260851069,0.02762592,3619.5,3618.5,2.76356]
[1736260851286,0.4,3619.6,3618.5,2.76356]
[1736260851910,0.42762592,3619.6,3618.4,0.015]
[1736260852219,0.55,3619.5,3618.5,2.76357]
[1736260852404,0.42762592,3619.6,3618.5,2.76357]
[1736260852890,0.02762592,3619.6,3618.6,0.02762907]
[1736260853099,0.4,3619.8,3618.7,0.0225]
[1736260853395,0.42762592,3620.2,3619.0,2.76319]
[1736260853560,0.42762592,3620.2,3619.1,2.7631]
[1736260853759,0.42762592,3620.2,3618.9,0.0225]
[1736260853970,0.42762592,3620.2,3618.9,3.468587]
[1736260854166,3.18992592,3620.2,3618.9,3.468587]
[1736260854483,3.18992592,3620.2,3619.0,2.76318]
[1736260854650,3.18992592,3620.2,3618.9,0.0225]
[1736260854651,0.42762592,3620.2,3618.9,0.0225]
[1736260854849,0.55,3620.1,3618.9,0.0225]
[1736260855052,0.02762592,3620.0,3618.8,1.0431]
[1736260855388,0.55,3619.8,3618.9,0.02762868]
[1736260855588,0.02762592,3619.7,3618.6,3.0]
[1736260855785,3.31259,3619.8,3618.5,2.76355]
[1736260855786,0.55,3619.8,3618.7,0.02762911]
[1736260856037,0.57762592,3619.8,3618.5,0.0075]
[1736260856343,0.57762592,3619.8,3618.7,2.76335]
[1736260856637,0.57762592,3619.8,3618.4,0.015]
[1736260856638,0.55,3619.5,3618.4,2.77111]
[1736260856840,0.9545,3619.4,3618.4,2.77111]
[1736260857017,0.57762592,3619.3,3618.4,2.76361]
[1736260857214,0.9545,3619.4,3618.5,0.0276307]
[1736260857422,1.3545,3619.9,3618.6,0.0225]
[1736260857734,0.9545,3620.3,3618.6,0.05012544]
[1736260857905,0.9545,3620.3,3619.3,1.1377]
[1736260858111,0.9545,3620.3,3619.5,2.7628]
[1736260858843,0.4,3620.5,3619.6,0.0276221]
[1736260859134,0.4,3620.5,3619.8,2.76251]
[1736260859337,0.4,3620.5,3619.9,0.02762014]
[1736260859540,0.4,3620.5,3619.8,2.76251]
[1736260859759,0.4,3620.5,3620.0,0.0225]
[1736260859959,0.98212592,3621.6,3620.5,2.76203]
[1736260860283,0.98212592,3621.6,3619.9,2.7625]
[1736260860426,0.55,3621.5,3619.8,0.577001]
[1736260860632,0.18083851,3621.4,3620.0,2.76243]
[1736260860943,0.55,3621.3,3620.1,0.0276187]
[1736260861259,0.4,3621.1,3619.6,1.1161]
[1736260861461,0.55,3620.5,3619.6,0.342]
[1736260861776,0.02762592,3620.4,3619.4,0.342]
[1736260861991,0.02762592,3620.4,3618.6,3.83996]
[1736260861992,2.76253,3619.9,3618.7,2.7634]
[1736260862141,2.76253,3619.9,3618.7,0.342]
[1736260862142,2.76267,3619.7,3618.7,0.342]
[1736260862344,0.426253,3619.9,3618.7,0.342]
[1736260862668,0.4,3620.2,3619.4,2.76288]
[1736260862963,0.4,3620.2,3619.5,2.76277]
[1736260863160,0.4,3620.2,3619.6,2.7903533]
[1736260863490,0.4,3620.5,3619.6,0.0276233]
[1736260863631,4.67614007,3621.2,3619.8,2.76255]
[1736260863632,0.9545,3620.8,3619.8,2.76255]
[1736260863965,0.02762592,3621.1,3620.0,3.0]
[1736260864256,1.53901146,3621.2,3620.4,2.7621]
[1736260864456,1.53901146,3621.2,3620.0,2.77743]
[1736260864457,1.53901146,3621.2,3620.1,0.0225]
[1736260864762,0.4,3621.9,3620.3,0.0225]
[1736260864959,0.02762592,3621.8,3620.7,0.015]
[1736260865144,0.42762592,3621.9,3621.0,2.76166]
[1736260865351,0.84192151,3621.9,3621.0,2.76166]
[1736260865663,0.84192151,3621.9,3620.8,0.342]
[1736260865664,0.84192151,3621.9,3621.1,2.78917195]
[1736260865861,0.42762592,3621.9,3620.9,2.76173]
[1736260866158,0.42762592,3621.9,3620.8,0.342]
[1736260866363,0.55,3621.8,3620.8,0.342]
[1736260866549,0.42762592,3621.9,3620.8,0.342]
[1736260866550,0.55,3621.2,3620.8,0.342]
[1736260866748,0.4,3621.9,3620.8,0.342]
[1736260866954,0.02762592,3621.8,3620.8,0.342]
[1736260867130,0.16583851,3621.8,3620.8,0.342]
[1736260867341,0.55,3621.7,3620.8,0.342]
[1736260867565,0.16583851,3621.8,3620.8,0.342]
[1736260867566,0.55,3621.5,3620.8,0.342]
[1736260867763,0.02762592,3621.4,3620.8,0.342]
[1736260868169,0.16583851,3621.8,3620.9,0.02761631]
[1736260868350,0.02762592,3621.8,3621.1,3.0]
[1736260868550,0.9545,3622.4,3621.2,0.02761187]
[1736260868758,0.9545,3622.4,3621.2,0.0225]
[1736260869078,0.02762592,3622.3,3621.3,2.76143]
[1736260869290,0.57762592,3622.3,3621.1,1.0756]
[1736260869492,0.95,3621.9,3621.2,0.325]
[1736260869677,0.95,3621.9,3621.2,0.0276113]
[1736260870039,0.4,3621.9,3621.2,0.0276113]
[1736260870245,0.4,3621.9,3621.3,2.76142]
[1736260870449,0.4,3621.9,3621.4,2.76133]
[1736260870650,0.4,3621.9,3621.5,0.02760889]
[1736260870899,0.4,3621.9,3621.2,2.78911882]
[1736260871202,0.9545,3622.4,3621.2,2.78911882]
[1736260871203,0.9545,3622.4,3621.8,2.76099]
[1736260871379,0.4,3622.6,3622.0,2.7609]
[1736260871690,1.13901146,3623.9,3622.1,2.78837492]
[1736260871691,1.3545,3623.3,3622.1,2.78837492]
[1736260871976,1.3545,3623.3,3622.2,3.0]
[1736260872180,1.3545,3623.3,3622.3,0.35260141]
[1736260872479,1.36968259,3623.3,3622.7,2.76036]
[1736260872680,0.9545,3623.3,3622.6,2.76044]
[1736260872882,0.9545,3623.3,3622.7,0.02760065]
[1736260873181,0.01,3623.4,3622.8,2.76027]
[1736260873378,0.01,3623.4,3622.9,0.02759922]
[1736260873877,0.01,3623.4,3622.5,3.0]
[1736260874083,0.01,3623.4,3622.4,1.0929]
[1736260874380,0.01,3623.4,3621.9,2.76093]
[1736260874585,0.41,3623.4,3622.0,0.325]
[1736260874818,0.01,3623.4,3622.9,2.7602]
[1736260875126,0.01,3623.4,3623.0,0.02759603]
[1736260875413,0.01,3623.4,3623.2,2.75996]
[1736260875577,0.01,3623.4,3623.3,0.35259599]
[1736260877167,0.01,3623.4,3623.3,0.325]
[1736260877673,0.01,3623.4,3623.1,3.0]
[1736260877674,1.5045,3623.3,3622.8,0.325]
[1736260877871,0.19145,3623.2,3622.8,0.325]
[1736260878075,0.41,3623.4,3622.8,0.325]
[1736260878285,0.41,3623.4,3623.1,2.76001]
[1736260878661,0.41,3623.4,3622.9,2.78779913]
[1736260878862,0.01,3623.4,3622.9,0.02759913]
[1736260879068,0.01,3623.4,3622.8,0.325]
[1736260879263,0.01,3623.4,3623.2,2.75996]
[1736260879479,0.01,3623.4,3623.2,2.78755648]
[1736260880086,0.01,3623.4,3623.3,2.78750588]
[1736260880286,0.01,3623.4,3623.1,2.76005]
[1736260880494,0.01,3623.4,3623.2,0.325]
[1736260880799,0.01,3623.4,3623.3,6.88670588]
[1736260881032,0.01,3623.4,3623.3,3.08491]
[1736260882201,0.01,3623.4,3623.3,0.325]
[1736260882412,0.01,3623.4,3622.9,0.325]
[1736260882721,0.01,3623.4,3622.5,0.015]
[1736260882890,0.01,3623.4,3623.0,0.325]
[1736260883091,0.01,3623.4,3623.2,2.75998]
[1736260883296,0.01,3623.4,3623.2,0.325]
[1736260883493,0.01,3623.4,3621.5,2.76121]
[1736260883692,1.9045,3623.2,3621.6,1.37066219]
[1736260883908,0.02762592,3623.1,3622.3,2.76063]
[1736260884114,1.53212592,3623.2,3622.0,3.0]
[1736260884424,0.55,3623.2,3622.5,2.76045]
[1736260884581,0.4,3623.3,3622.6,2.78804039]
[1736260884781,0.53974259,3623.3,3622.6,2.76043]
[1736260885017,0.53974259,3623.3,3622.8,2.76029]
[1736260885205,0.4,3623.3,3622.9,0.325]
[1736260885403,0.01,3623.4,3622.9,3.325]
[1736260885603,0.01,3623.4,3623.3,2.75991]
[1736260885804,0.01,3623.4,3623.3,5.77491]
[1736260886054,0.01,3623.4,3623.3,5.78241]
[1736260886194,0.01,3623.4,3623.3,7.656259]
[1736260888623,0.9598,3625.1,3623.8,0.0075]
[1736260888823,0.98742592,3625.1,3624.0,0.0075]
[1736260889131,0.9598,3625.1,3624.2,3.0]
[1736260889287,0.4,3625.6,3625.0,2.75856]
[1736260889288,0.4,3625.5,3625.0,2.75856]
[1736260889484,0.4,3625.5,3625.4,2.75831]
[1736260889712,0.4,3625.5,3625.4,7.16028889]
[1736260889913,0.4,3627.0,3626.4,2.75755]
[1736260890097,0.9598,3627.1,3626.4,2.75755]
[1736260890298,0.4,3627.3,3626.4,5.75755]
[1736260890513,0.4,3627.3,3626.1,2.78530262]
[1736260890514,0.9598,3627.6,3626.5,1.0938]
[1736260890700,0.9598,3627.6,3626.7,0.0225]
[1736260891041,0.9598,3627.6,3626.8,0.02756546]
[1736260891191,0.9598,3627.6,3626.6,3.0654]
[1736260891392,0.02762592,3627.5,3625.9,2.75793]
[1736260891627,0.42762592,3627.5,3625.9,0.308]
[1736260891837,0.42762592,3627.5,3624.2,2.25]
[1736260891838,2.75766,3626.3,3624.0,2.75938]
[1736260891988,0.9598,3626.9,3624.1,0.308]
[1736260891989,0.55,3625.9,3624.1,0.308]
[1736260892327,0.55,3625.8,3624.2,2.75922]
[1736260892488,0.02762592,3625.7,3624.1,0.308]
[1736260892684,0.55,3625.4,3624.3,2.75907]
[1736260892925,0.55,3625.2,3624.3,2.75907]
[1736260893121,0.55,3625.2,3624.1,0.308]
[1736260893122,0.02762592,3625.1,3624.1,0.308]
[1736260893296,0.4,3625.3,3624.2,0.02758716]
[1736260893504,0.4,3625.3,3624.4,3.0]
[1736260893700,0.4,3625.3,3623.9,1.0196]
[1736260893701,0.55,3625.2,3623.9,1.0196]
[1736260893900,0.55,3625.2,3624.0,0.308]
[1736260893901,0.55,3625.0,3624.0,0.308]
[1736260894086,0.4,3625.2,3624.2,0.015]
[1736260894292,0.4,3625.2,3624.4,0.0075]
[1736260894492,0.9598,3625.6,3625.0,2.75859]
[1736260894736,0.9598,3626.1,3625.5,2.75819]
[1736260894904,0.9598,3626.1,3625.8,2.75796]
[1736260895227,0.9598,3626.1,3625.6,0.3355797]
[1736260895228,0.9598,3626.6,3625.7,2.75802]
[1736260895427,0.9598,3626.6,3625.8,0.0275763]
[1736260895639,0.9598,3626.6,3625.7,3.06607]
[1736260896128,0.9598,3626.6,3625.8,0.0275763]
[1736260896326,0.02762592,3626.5,3625.7,0.308]
[1736260897089,0.57762592,3626.5,3625.7,0.308]
[1736260897299,0.57762592,3626.5,3625.3,0.308]
[1736260897507,0.55,3626.2,3625.3,0.308]
[1736260897740,0.02762592,3626.1,3625.3,0.308]
[1736260898100,0.57762592,3626.4,3625.3,0.308]
[1736260898327,0.42949459,3626.3,3625.3,0.308]
[1736260898538,0.02762592,3626.2,3625.3,3.06637]
[1736260898744,0.02762592,3626.2,3625.3,3.06638]
[1736260898953,0.57762592,3626.5,3625.4,0.0275802]
[1736260899118,0.4,3626.4,3625.4,2.75831]
[1736260899314,0.22136851,3626.3,3625.3,0.308]
[1736260899515,0.4,3626.2,3625.3,0.308]
[1736260899719,0.4,3626.2,3625.1,0.308]
[1736260899720,0.57762592,3626.1,3625.1,0.308]
[1736260899937,0.57762592,3626.1,3625.1,3.09409248]
[1736260900141,0.57762592,3626.1,3625.2,2.75844]
[1736260900448,0.57762592,3626.1,3625.3,2.75836]
[1736260900633,0.57762592,3626.1,3625.1,0.33558248]
[1736260900634,0.97051777,3626.1,3625.1,3.06651]
[1736260900833,0.97051777,3626.1,3625.1,0.308]
[1736260901228,0.97051777,3626.1,3625.2,2.75842]
[1736260901429,0.55,3625.9,3624.9,2.75865]
[1736260901653,0.02762592,3625.8,3625.1,0.308]
[1736260901856,0.55,3625.9,3625.1,0.308]
[1736260902055,0.55,3625.9,3625.1,0.33558195]
[1736260902255,0.55,3625.9,3625.3,2.75831]
[1736260902620,0.55,3625.9,3625.1,3.06646]
[1736260902922,0.02762592,3625.8,3624.9,2.75869]
[1736260903135,0.02762592,3625.8,3624.9,0.308]
[1736260903448,0.55,3625.6,3624.9,0.308]
[1736260903615,0.55,3625.3,3623.8,1.0462]
[1736260903815,0.42762592,3625.4,3624.9,2.75869]
[1736260904011,0.4,3625.7,3625.1,2.75854]
[1736260904748,0.55,3625.6,3624.9,0.02758166]
[1736260905261,0.55,3625.6,3624.9,2.78626166]
[1736260905417,0.55,3625.4,3624.9,0.308]
[1736260905838,0.55,3625.4,3624.0,0.0075]
[1736260906029,0.55,3625.2,3624.3,2.75909]
[1736260906226,0.55,3625.2,3622.9,3.32104601]
[1736260906227,0.55,3624.9,3623.7,0.0075]
[1736260906546,0.55,3624.9,3624.0,2.75931]
[1736260906547,0.02762592,3624.8,3624.0,2.75931]
[1736260906752,0.02762592,3624.8,3623.8,0.308]
[1736260906922,0.95,3624.6,3623.8,0.308]
[1736260907125,0.02762592,3624.5,3623.8,3.06752]
[1736260907337,0.02762592,3624.5,3623.3,5.52296]
[1736260907338,0.55,3624.4,3623.5,2.75973]
[1736260907538,0.02762592,3624.3,3623.8,0.308]
[1736260907916,0.57762592,3624.4,3623.8,3.06746]
[1736260908147,0.4,3624.5,3623.9,0.0275933]
[1736260908339,6.2794085,3626.0,3624.0,3.0]
[1736260908340,0.9598,3625.2,3624.0,3.0]
[1736260908587,0.9598,3625.2,3624.6,2.75888]
[1736260908740,0.02762592,3625.1,3624.1,2.7593]
[1736260908940,0.57762592,3625.1,3623.9,3.015]
[1736260909142,0.57762592,3625.1,3623.9,0.15843]
[1736260909345,0.57762592,3625.1,3624.3,2.75911]
[1736260909657,2.75896,3624.6,3623.3,2.7599]
[1736260909878,0.55,3624.4,3623.0,0.308]
[1736260910171,0.02762592,3624.3,3623.3,3.0]
[1736260910477,0.02762592,3624.3,3623.4,0.5787536]
[1736260910617,0.02762592,3624.3,3622.6,0.0075]
[1736260910618,0.55,3624.2,3623.5,0.308]
[1736260910812,0.02762592,3624.1,3623.5,0.308]
[1736260911088,0.02762592,3624.3,3623.5,0.308]
[1736260911375,0.02762592,3624.7,3624.2,2.75922]
[1736260911552,0.9598,3624.8,3624.2,2.75922]
[1736260911751,0.9598,3624.8,3624.5,2.75893]
[1736260911953,4.14559592,3625.6,3624.5,2.75893]
[1736260912151,4.14559592,3625.6,3624.2,0.275922]
[1736260912152,0.9598,3625.2,3624.2,2.75922]
[1736260912419,0.02762592,3625.1,3624.3,2.78667961]
[1736260912588,0.02762592,3625.1,3624.3,2.75909]
[1736260913431,0.02762592,3625.1,3623.7,0.015]
[1736260913667,0.55,3625.1,3624.6,2.75892]
[1736260914002,0.55,3625.1,3624.1,2.75925]
[1736260914003,0.55,3625.1,3624.7,3.06679]
[1736260914131,0.9565,3625.7,3624.7,3.09438695]
[1736260914331,0.9565,3625.7,3625.3,2.75838]
[1736260914594,1.3565,3626.7,3626.1,2.75778]
[1736260914773,0.4,3626.8,3626.7,2.75732]
[1736260915071,0.02762592,3627.2,3626.6,0.308]
[1736260915072,1.13373061,3627.0,3626.6,0.308]
[1736260915229,6.1e-07,3627.0,3626.9,5.75717]
[1736260915434,6.1e-07,3627.0,3626.9,6.82237]
[1736260916772,3.40119185,3627.9,3626.9,6.82237]
[1736260916773,0.4,3628.8,3627.7,2.75654]
[1736260916933,0.9565,3629.0,3628.1,2.75619]
[1736260917134,0.9565,3629.0,3628.0,0.308]
[1736260917135,0.02762592,3628.9,3628.0,0.308]
[1736260917467,0.4,3628.8,3628.0,0.308]
[1736260917646,2.75588,3628.6,3628.0,0.308]
[1736260917841,0.55,3628.3,3628.0,0.308]
[1736260918044,0.02762592,3628.2,3628.0,0.308]
[1736260918363,0.95,3628.0,3626.9,0.296]
[1736260918703,0.55,3627.8,3627.0,2.75706]
[1736260918837,0.55,3627.8,3627.1,2.75701]
[1736260919037,0.02762592,3627.7,3626.9,0.296]
[1736260920050,0.97762592,3627.8,3626.9,0.32356834]
[1736260920449,0.97762592,3627.8,3626.9,3.08072834]
[1736260920665,1.46600977,3627.8,3626.9,3.05316]
[1736260921048,1.46600977,3627.8,3626.7,2.7573]
[1736260921335,0.95,3627.6,3626.2,0.296]
[1736260921564,1.5065,3627.3,3626.3,0.02757366]
[1736260921764,1.53412592,3627.3,3626.2,0.296]
[1736260921961,0.95,3627.1,3626.2,0.296]
[1736260922168,0.97762592,3627.1,3626.2,3.0537]
[1736260922341,0.97762592,3627.1,3626.3,2.75761]
[1736260922542,0.97762592,3627.1,3626.2,0.296]
[1736260923142,0.97762592,3627.1,3626.1,2.75778]
[1736260923334,0.55,3626.9,3626.2,0.296]
[1736260923540,1.5065,3626.7,3626.2,0.296]
[1736260923779,0.55,3626.3,3625.6,0.296]
[1736260923981,0.02762592,3626.2,3625.6,0.296]
[1736260924498,0.57762592,3626.3,3625.6,0.296]
[1736260924671,0.57762592,3626.3,3625.6,3.05411]
[1736260924857,0.55,3626.3,3625.8,2.758]
[1736260925260,0.55,3626.3,3625.6,0.296]
[1736260925594,0.57762592,3626.3,3625.6,0.296]
[1736260925797,0.55,3626.3,3625.7,0.0275779]
[1736260925957,0.55,3626.3,3625.7,2.7856479]
[1736260926159,0.55,3626.3,3625.7,2.75807]
[1736260926464,0.55,3626.3,3625.6,0.296]
[1736260926666,0.57762592,3626.3,3625.6,0.296]
[1736260927693,0.9565,3626.7,3626.0,3.0]
[1736260927857,0.4,3626.9,3626.1,0.32757449]
[1736260928057,0.9565,3627.2,3626.9,2.75711]
[1736260928256,0.19341259,3627.9,3627.0,0.296]
[1736260928257,1.38412592,3627.8,3627.0,0.296]
[1736260928685,0.9565,3627.8,3627.0,0.296]
[1736260928887,0.9565,3627.8,3627.2,2.75687]
[1736260929458,1.14084457,3628.9,3627.3,0.02756616]
[1736260929459,0.9565,3628.3,3627.3,0.02756616]
[1736260929659,0.4,3628.7,3627.5,5.75669]
[1736260929886,0.4,3628.7,3627.9,2.75638]
[1736260930091,0.98412592,3628.8,3627.7,0.015]
[1736260930092,0.9565,3628.8,3627.7,0.015]
[1736260930285,0.9565,3628.8,3628.2,2.75617]
[1736260930497,0.9565,3628.8,3627.5,3.0]
[1736260930498,0.9565,3628.8,3627.9,2.75635]
[1736260930697,0.9565,3628.8,3627.5,3.0]
[1736260930698,0.02762592,3628.7,3628.0,2.78387008]
[1736260930997,0.02762592,3628.7,3628.0,2.75631]
[1736260931437,0.02762592,3628.7,3627.6,2.75663]
[1736260931639,0.56,3628.4,3627.3,2.7568]
[1736260931846,2.75618,3628.2,3627.1,2.75701]
[1736260932017,1.93412592,3628.1,3627.0,3.05305]
[1736260932211,4.69039592,3628.1,3627.0,3.05305]
[1736260932637,2.75634,3628.0,3627.0,0.296]
[1736260932838,0.42762592,3627.9,3627.0,0.296]
[1736260933002,0.55,3627.7,3627.0,0.296]
[1736260933199,0.55,3627.3,3626.7,1.14595003]
[1736260933435,0.55,3627.3,3625.8,3.4378501]
[1736260933436,3.70725,3626.8,3625.7,1.44195003]
[1736260933642,3.70725,3626.8,3625.7,4.19998003]
[1736260933643,0.55,3626.6,3625.7,4.19998003]
[1736260933959,1.5065,3626.4,3625.7,1.44195003]
[1736260934301,0.02762592,3626.3,3625.7,1.44195003]
[1736260934503,4.29168592,3626.4,3625.7,1.44195003]
[1736260934736,0.9565,3626.4,3625.9,2.75793]
[1736260934937,0.9565,3626.4,3625.8,0.02757926]
[1736260934938,0.4,3626.5,3626.0,0.02757687]
[1736260935151,0.4,3626.5,3625.7,1.44195003]
[1736260935152,0.4,3626.5,3626.1,2.75778]
[1736260935348,0.4,3626.5,3625.7,4.44195003]
[1736260935511,0.4,3626.5,3625.7,0.296]
[1736260935712,0.4,3626.5,3625.9,2.75788]
[1736260935908,0.4,3626.5,3625.7,0.296]
[1736260936116,0.4,3626.5,3625.8,0.02757555]
[1736260936452,0.4,3626.5,3625.9,2.75792]
[1736260937017,0.4,3626.5,3626.0,0.02757556]
[1736260937517,0.4,3626.5,3626.1,2.75777]
[1736260937722,0.98412592,3626.9,3626.4,2.7575]
[1736260937723,0.9565,3626.9,3626.4,2.7575]
[1736260938320,0.98412592,3627.4,3626.9,2.7571]
[1736260938547,0.9565,3628.0,3627.3,2.75686]
[1736260938801,0.9565,3628.0,3627.5,2.75671]
[1736260939116,0.9565,3628.0,3627.6,0.02756319]
[1736260939322,0.9565,3628.0,3627.2,0.015]
[1736260939556,0.9565,3628.0,3627.5,2.75669]
[1736260940135,0.9565,3628.0,3627.4,2.75676]
[1736260940330,0.02762592,3627.9,3627.2,2.75692]
[1736260940531,0.55,3627.8,3626.5,5.75742]
[1736260940730,0.4,3627.5,3626.0,1.14595003]
[1736260941067,0.55,3627.2,3626.1,0.296]